bitfinex/quotes_SOLUSD_20240914
["timestamp","ask_amount","ask_price","bid_price","bid_amount"]
[1726317762303,21.91,137.28,137.21,30.86621491]
[1726317762482,21.91,137.26,137.21,30.86621491]
[1726317763995,21.91,137.26,137.22,14.26082621]
[1726317764586,21.91,137.28,137.22,14.26082621]
[1726317775411,21.91,137.28,137.21,16.6053887]
[1726317775719,21.91,137.28,137.21,30.86621491]
[1726317775896,21.91,137.28,137.23,14.26082621]
[1726317778720,21.91,137.28,137.22,14.26082621]
[1726317781721,21.91,137.28,137.21,30.86621491]
[1726317786200,21.91,137.28,137.22,14.26082621]
[1726317792840,0.12549,137.27,137.21,0.2540887]
[1726317793022,0.12549,137.27,137.21,14.51491491]
[1726317795443,0.12549,137.27,137.22,14.26082621]
[1726317795625,21.91,137.28,137.23,14.26082621]
[1726317801621,21.91,137.28,137.22,14.26082621]
[1726317805836,21.91,137.28,137.23,3.94806692]
[1726317806039,21.91,137.28,137.23,14.26082621]
[1726317814944,21.91,137.28,137.22,14.26082621]
[1726317820446,21.91,137.28,137.21,0.2540887]
[1726317820639,21.91,137.26,137.21,0.2540887]
[1726317822449,21.91,137.26,137.21,14.51491491]
[1726317829760,21.91,137.26,137.22,14.26082621]
[1726317851102,21.91,137.26,137.21,0.2540887]
[1726317883946,21.91,137.26,137.22,14.26082621]
[1726317884327,21.91,137.26,137.23,14.26082621]
[1726317887455,21.91,137.26,137.21,0.2540887]
[1726317887831,21.91,137.26,137.23,14.26082621]
[1726317888148,21.91,137.26,137.22,14.26082621]
[1726317891752,21.91,137.26,137.21,0.2540887]
[1726317892072,21.91,137.26,137.21,14.51491491]
[1726317894343,21.91,137.26,137.22,14.26082621]
[1726317901871,21.91,137.26,137.21,14.51491491]
[1726317913148,21.91,137.26,137.21,0.2540887]
[1726317916873,21.91,137.26,137.21,14.51491491]
[1726317924611,21.91,137.26,137.22,14.26082621]
[1726317925192,44.2813,137.27,137.22,14.26082621]
[1726317926883,44.2813,137.27,137.23,3.94327188]
[1726317933201,22.3713,137.27,137.23,18.20409809]
[1726317933403,21.91,137.3,137.26,14.26082621]
[1726317941017,21.91,137.3,137.24,14.26082621]
[1726317941190,21.91,137.3,137.23,14.26082621]
[1726317942312,0.12549,137.29,137.22,14.26082621]
[1726317942612,21.91,137.3,137.23,14.26082621]
[1726317943188,21.91,137.3,137.24,14.26082621]
[1726317943411,21.91,137.3,137.25,14.26082621]
[1726317947319,21.91,137.3,137.26,14.26082621]
[1726317949420,21.91,137.3,137.25,14.26082621]
[1726317950723,21.91,137.3,137.24,14.26082621]
[1726317962139,21.91,137.3,137.25,14.26082621]
[1726317964158,21.91,137.3,137.24,14.26082621]
[1726317968044,21.91,137.3,137.25,14.26082621]
[1726317970061,21.91,137.3,137.24,14.26082621]
[1726317976757,21.91,137.3,137.25,14.26082621]
[1726317984369,22.0378,137.31,137.25,14.26082621]
[1726317984674,43.9478,137.31,137.25,14.26082621]
[1726317984873,43.9478,137.31,137.26,14.26082621]
[1726317986171,22.0378,137.31,137.26,14.26082621]
[1726317986469,22.0378,137.31,137.27,14.26082621]
[1726317986676,22.0378,137.31,137.28,14.26082621]
[1726317987345,22.0378,137.31,137.27,14.26082621]
[1726317987548,22.0378,137.31,137.26,14.26082621]
[1726317988346,43.9478,137.31,137.25,14.26082621]
[1726317991073,43.9478,137.31,137.26,14.26082621]
[1726317992363,43.9478,137.31,137.27,14.26082621]
[1726317994779,22.0378,137.31,137.27,14.26082621]
[1726318002962,22.0378,137.31,137.26,14.26082621]
[1726318006365,22.0378,137.31,137.27,14.26082621]
[1726318007504,22.8078,137.34,137.3,14.26082621]
[1726318010495,22.8078,137.34,137.31,14.26082621]
[1726318011008,21.91,137.33,137.31,14.26082621]
[1726318011190,22.8078,137.34,137.31,14.26082621]
[1726318011788,0.2540887,137.35,137.33,14.26082621]
[1726318012389,0.2540887,137.35,137.27,20.12549]
[1726318012599,0.2540887,137.35,137.34,14.26082621]
[1726318013672,0.2540887,137.35,137.27,23.06611235]
[1726318013872,0.2540887,137.35,137.34,14.26082621]
[1726318014087,0.2540887,137.35,137.34,14.38631621]
[1726318022492,0.2540887,137.35,137.34,34.38631621]
[1726318024003,0.2540887,137.35,137.34,20.12549]
[1726318024207,0.2540887,137.35,137.34,34.38631621]
[1726318024709,0.2540887,137.35,137.34,14.26082621]
[1726318024882,0.2540887,137.35,137.34,34.26082621]
[1726318025077,0.2540887,137.35,137.33,14.26082621]
[1726318025601,0.2540887,137.35,137.27,15.7859]
[1726318025796,0.2540887,137.35,137.3,14.26082621]
[1726318028304,0.2540887,137.35,137.32,14.26082621]
[1726318028502,0.2540887,137.35,137.33,14.26082621]
[1726318031392,0.2540887,137.35,137.34,14.26082621]
[1726318034991,0.2540887,137.35,137.34,14.38631621]
[1726318035287,0.2540887,137.35,137.34,34.38631621]
[1726318036396,0.2540887,137.4,137.35,20.12549]
[1726318036597,0.2540887,137.4,137.38,14.26082621]
[1726318037911,0.2540887,137.4,137.37,14.26082621]
[1726318038100,0.2540887,137.4,137.36,14.26082621]
[1726318038416,0.2540887,137.4,137.36,20.0]
[1726318038790,0.2540887,137.4,137.35,14.26082621]
[1726318039004,0.2540887,137.4,137.35,20.0]
[1726318039204,0.2540887,137.4,137.34,14.26082621]
[1726318041799,0.2540887,137.4,137.35,14.26082621]
[1726318042121,0.2540887,137.4,137.36,14.26082621]
[1726318042694,0.2540887,137.4,137.37,14.26082621]
[1726318043326,0.2540887,137.4,137.36,14.26082621]
[1726318043997,0.2540887,137.4,137.37,14.26082621]
[1726318045107,0.2540887,137.4,137.36,14.26082621]
[1726318045406,0.2540887,137.4,137.35,14.26082621]
[1726318052369,0.2540887,137.4,137.34,14.26082621]
[1726318056033,0.2540887,137.4,137.3,0.12549]
[1726318056034,0.2540887,137.4,137.33,14.26082621]
[1726318056739,0.2540887,137.4,137.36,14.26082621]
[1726318058127,0.2540887,137.4,137.35,14.26082621]
[1726318059930,0.2540887,137.4,137.34,14.26082621]
[1726318060312,0.2540887,137.4,137.35,14.26082621]
[1726318061438,0.2540887,137.4,137.34,14.26082621]
[1726318062535,0.2540887,137.4,137.35,14.26082621]
[1726318063045,0.2540887,137.4,137.36,14.26082621]
[1726318063536,0.2540887,137.4,137.33,0.12549]
[1726318063537,0.2540887,137.4,137.37,14.26082621]
[1726318064128,0.2540887,137.4,137.38,14.26082621]
[1726318064337,0.2540887,137.4,137.39,14.26082621]
[1726318065335,0.2540887,137.4,137.38,14.26082621]
[1726318065523,0.2540887,137.4,137.35,0.12549]
[1726318065722,0.2540887,137.4,137.36,20.0]
[1726318066836,0.2540887,137.4,137.29,22.3208]
[1726318067039,0.2540887,137.4,137.34,14.26082621]
[1726318070520,0.2540887,137.4,137.33,14.26082621]
[1726318070739,0.2540887,137.4,137.34,20.0]
[1726318070949,0.2540887,137.4,137.33,20.0]
[1726318072646,0.2540887,137.4,137.33,14.26082621]
[1726318077451,0.2540887,137.4,137.32,14.26082621]
[1726318083356,0.2540887,137.4,137.34,14.26082621]
[1726318086659,0.2540887,137.4,137.35,14.26082621]
[1726318086836,0.2540887,137.4,137.34,14.26082621]
[1726318089367,0.2540887,137.4,137.33,14.38631621]
[1726318091867,0.2540887,137.4,137.33,14.26082621]
[1726318093773,0.2540887,137.4,137.3,20.0]
[1726318093948,37.9498,137.39,137.31,0.12549]
[1726318094147,37.9498,137.39,137.33,20.0]
[1726318097383,37.9498,137.39,137.32,14.26082621]
[1726318097577,37.9498,137.39,137.33,20.0]
[1726318097744,37.9498,137.39,137.33,14.26082621]
[1726318099974,16.0398,137.39,137.34,14.26082621]
[1726318100180,16.0398,137.39,137.35,14.26082621]
[1726318103477,16.0398,137.39,137.34,14.26082621]
[1726318107280,37.9198,137.39,137.34,14.26082621]
[1726318107487,37.9198,137.39,137.33,14.26082621]
[1726318110469,16.0398,137.39,137.33,14.26082621]
[1726318110875,37.9198,137.39,137.33,14.26082621]
[1726318111486,16.0398,137.39,137.33,14.26082621]
[1726318111988,37.9198,137.39,137.33,14.26082621]
[1726318112489,16.0398,137.39,137.33,14.26082621]
[1726318112991,16.0398,137.39,137.34,14.26082621]
[1726318124095,16.0398,137.39,137.32,14.26082621]
[1726318124394,16.0398,137.39,137.33,20.0]
[1726318137305,16.0398,137.39,137.34,14.26082621]
[1726318140083,16.0398,137.39,137.35,1.45592839]
[1726318140283,16.0398,137.39,137.37,14.26082621]
[1726318143089,16.0398,137.39,137.38,14.26082621]
[1726318143281,0.2540887,137.4,137.38,14.26082621]
[1726318143506,0.2540887,137.4,137.39,14.26082621]
[1726318143713,0.2540887,137.4,137.39,34.38631621]
[1726318146219,0.2540887,137.4,137.39,20.12549]
[1726318146414,0.2540887,137.4,137.39,34.26082621]
[1726318148704,0.2540887,137.4,137.36,0.12549]
[1726318148905,0.2540887,137.4,137.38,14.26082621]
[1726318149937,0.2540887,137.4,137.37,14.26082621]
[1726318150225,0.2540887,137.4,137.38,14.26082621]
[1726318150718,0.2540887,137.4,137.39,14.26082621]
[1726318154122,0.2540887,137.4,137.34,20.12549]
[1726318154425,0.2540887,137.4,137.37,14.26082621]
[1726318155135,0.2540887,137.4,137.38,14.26082621]
[1726318155632,0.2540887,137.4,137.37,14.26082621]
[1726318156431,0.2540887,137.4,137.34,20.12549]
[1726318156610,0.2540887,137.4,137.35,14.26082621]
[1726318158627,6.5795887,137.4,137.35,14.26082621]
[1726318160225,6.5795887,137.4,137.34,0.12549]
[1726318160431,6.5795887,137.4,137.34,14.38631621]
[1726318164335,6.5795887,137.4,137.34,14.26082621]
[1726318165147,6.5795887,137.4,137.35,14.26082621]
[1726318167352,6.5795887,137.4,137.31,0.12549]
[1726318167731,6.5795887,137.4,137.34,14.26082621]
[1726318170154,20.12549,137.49,137.37,10.0]
[1726318170443,20.12549,137.45,137.37,10.0]
[1726318170623,0.12549,137.43,137.37,10.0]
[1726318173136,37.635,137.42,137.37,10.0]
[1726318177455,37.635,137.42,137.39,10.0]
[1726318178032,15.755,137.42,137.39,10.0]
[1726318178561,15.755,137.45,137.41,10.0]
[1726318179129,21.88,137.44,137.41,10.0]
[1726318182532,21.88,137.44,137.39,10.0]
[1726318186755,21.88,137.44,137.37,10.2540887]
[1726318186955,0.12549,137.43,137.37,10.2540887]
[1726318200474,21.88,137.44,137.39,10.0]
[1726318209867,15.755,137.45,137.39,24.26082621]
[1726318210171,37.635,137.45,137.41,10.0]
[1726318213876,37.635,137.45,137.39,10.0]
[1726318218699,0.12549,137.44,137.39,10.0]
[1726318218996,21.88,137.43,137.39,10.0]
[1726318219373,21.88,137.43,137.37,10.2540887]
[1726318220876,22.00549,137.42,137.37,10.2540887]
[1726318224000,0.12549,137.42,137.37,10.2540887]
[1726318224206,0.12549,137.43,137.37,10.2540887]
[1726318229198,21.88,137.41,137.37,10.2540887]
[1726318243888,43.8413,137.42,137.37,10.2540887]
[1726318254521,37.4032,137.42,137.37,10.2540887]
[1726318269642,0.12549,137.39,137.37,0.2540887]
[1726318276413,21.88,137.38,137.37,0.2540887]
[1726318277813,29.28449,137.38,137.37,0.2540887]
[1726318279350,0.12549,137.37,137.33,0.2540887]
[1726318279533,42.00549,137.37,137.33,0.2540887]
[1726318280218,22.00549,137.35,137.33,0.2540887]
[1726318285556,0.12549,137.35,137.33,0.2540887]
[1726318286035,21.88,137.36,137.33,0.2540887]
[1726318286236,27.61681457,137.37,137.33,0.2540887]
[1726318286553,41.88,137.37,137.33,0.2540887]
[1726318289452,22.00549,137.38,137.33,0.2540887]
[1726318289949,21.88,137.38,137.33,10.2540887]
[1726318290354,21.88,137.39,137.33,10.2540887]
[1726318295038,41.88,137.4,137.35,10.0]
[1726318296261,21.88,137.4,137.35,10.0]
[1726318296759,33.84809953,137.42,137.35,10.0]
[1726318296760,42.00549,137.41,137.35,10.0]
[1726318298163,21.88,137.41,137.35,31.2477]
[1726318301667,21.88,137.39,137.35,31.2477]
[1726318301870,22.00549,137.39,137.35,31.2477]
[1726318302246,0.12549,137.39,137.35,31.2477]
[1726318302578,0.12549,137.4,137.35,31.2477]
[1726318319974,22.00549,137.4,137.35,31.2477]
[1726318320474,22.00549,137.4,137.35,21.2477]
[1726318320475,29.28369,137.4,137.35,21.2477]
[1726318321870,21.88,137.38,137.33,10.2540887]
[1726318322608,21.88,137.38,137.33,0.2540887]
[1726318322784,0.12549,137.37,137.33,0.2540887]
[1726318329090,21.88,137.36,137.33,0.2540887]
[1726318332480,29.1605,137.36,137.33,0.2540887]
[1726318333406,0.12549,137.35,137.33,0.2540887]
[1726318337888,22.00549,137.35,137.33,0.2540887]
[1726318344101,0.12549,137.35,137.33,0.2540887]
[1726318346717,21.88,137.36,137.33,0.2540887]
[1726318356617,7.40539,137.37,137.33,0.2540887]
[1726318356821,8.88140423,137.38,137.33,10.2540887]
[1726318357124,20.0,137.38,137.33,26.5816887]
[1726318357300,31.65351245,137.4,137.33,26.5816887]
[1726318357599,35.37127034,137.4,137.33,26.5816887]
[1726318357800,57.25127034,137.4,137.33,26.5816887]
[1726318357997,46.25541245,137.4,137.33,26.5816887]
[1726318358801,0.12549,137.39,137.33,26.5816887]
[1726318362529,0.12549,137.39,137.35,10.0]
[1726318380933,0.12549,137.39,137.33,26.5816887]
[1726318381244,29.28409,137.39,137.33,26.5816887]
[1726318382331,36.86973823,137.39,137.33,26.5816887]
[1726318383033,29.1591,137.38,137.33,26.5816887]
[1726318383233,0.12549,137.37,137.33,16.5816887]
[1726318386256,0.12549,137.37,137.33,26.5816887]
[1726318390462,0.12549,137.38,137.33,26.5816887]
[1726318390958,21.88,137.39,137.33,26.5816887]
[1726318391163,0.12549,137.39,137.35,16.384]
[1726318395068,0.12549,137.39,137.35,6.384]
[1726318400174,7.40409,137.39,137.35,6.384]
[1726318400366,0.12549,137.39,137.35,6.384]
[1726318402962,0.12549,137.37,137.33,26.5816887]
[1726318403864,29.28519,137.37,137.33,16.5816887]
[1726318404044,29.1601,137.36,137.33,16.5816887]
[1726318404239,0.12549,137.35,137.33,0.2540887]
[1726318452317,7.40619,137.35,137.33,0.2540887]
[1726318453102,14.99440788,137.35,137.33,0.2540887]
[1726318459819,0.12549,137.34,137.33,0.2540887]
[1726318498272,7.40659,137.34,137.33,0.2540887]
[1726318501851,0.12549,137.34,137.33,0.2540887]
[1726318503271,7.40659,137.34,137.33,0.2540887]
[1726318516190,0.12549,137.34,137.33,0.2540887]
[1726318517092,27.59393641,137.36,137.33,0.2540887]
[1726318517392,4.88025328,137.37,137.33,0.2540887]
[1726318517393,24.88025328,137.37,137.33,0.2540887]
[1726318517595,23.61038305,137.37,137.33,0.2540887]
[1726318518789,0.12549,137.36,137.33,0.2540887]
[1726318522592,0.12549,137.36,137.33,10.2540887]
[1726318530177,7.59203376,137.38,137.33,10.2540887]
[1726318530374,7.59203376,137.38,137.35,10.0]
[1726318530567,1.26969996,137.39,137.35,10.0]
[1726318531695,0.12549,137.38,137.35,10.0]
[1726318533295,0.12549,137.38,137.33,10.2540887]
[1726318557020,0.12549,137.38,137.33,26.5583887]
[1726318560910,0.12549,137.38,137.33,16.5583887]
[1726318560911,8.98012044,137.38,137.33,16.5583887]
[1726318561116,0.12549,137.36,137.33,16.5583887]
[1726318562325,7.40579,137.36,137.33,16.5583887]
[1726318563826,0.12549,137.34,137.33,0.2540887]
[1726318565336,7.40659,137.34,137.33,0.2540887]
[1726318565516,27.40659,137.34,137.33,0.2540887]
[1726318568833,27.40659,137.34,137.29,15.3442887]
[1726318568834,0.12549,137.32,137.29,15.3442887]
[1726318570940,7.40779,137.32,137.29,15.3442887]
[1726318572015,7.40779,137.32,137.29,0.2540887]
[1726318576152,11.15370093,137.32,137.29,0.2540887]
[1726318576640,0.12549,137.3,137.29,0.2540887]
[1726318598359,28.88755466,137.33,137.29,10.2540887]
[1726318598548,0.12549,137.32,137.29,10.2540887]
[1726318609067,0.12549,137.32,137.29,0.2540887]
[1726318610665,0.12549,137.32,137.29,10.2540887]
[1726318611051,0.12549,137.32,137.29,0.2540887]
[1726318626767,7.40789,137.32,137.29,0.2540887]
[1726318627490,29.29789,137.32,137.29,0.2540887]
[1726318627695,7.40789,137.32,137.29,0.2540887]
[1726318638988,15.02797067,137.32,137.29,0.2540887]
[1726318639497,41.10109281,137.32,137.29,0.2540887]
[1726318647986,40.95860014,137.32,137.29,0.2540887]
[1726318651596,62.84860014,137.32,137.29,0.2540887]
[1726318651794,40.95860014,137.32,137.29,0.2540887]
[1726318656298,15.02797067,137.32,137.29,0.2540887]
[1726318662504,7.62008067,137.32,137.29,10.2540887]
[1726318662707,1.27022424,137.33,137.29,10.2540887]
[1726318664207,0.12549,137.32,137.29,10.2540887]
[1726318667716,1.27022424,137.33,137.29,10.2540887]
[1726318667906,1.27022424,137.33,137.31,10.0]
[1726318676507,8.55192424,137.33,137.31,10.0]
[1726318678845,8.55192424,137.33,137.29,0.2540887]
[1726318678846,0.12549,137.32,137.29,10.2540887]
[1726318680133,8.55192424,137.33,137.31,10.0]
[1726318680851,1.27022424,137.33,137.31,10.0]
[1726318684945,1.27022424,137.33,137.29,10.2540887]
[1726318685243,8.55202424,137.33,137.29,10.2540887]
[1726318685843,0.12549,137.32,137.29,10.2540887]
[1726318686441,7.40779,137.32,137.29,10.2540887]
[1726318697225,8.55192424,137.33,137.31,10.0]
[1726318701751,0.12549,137.32,137.29,10.2540887]
[1726318702462,7.40799,137.32,137.29,10.2540887]
[1726318702759,0.12549,137.3,137.29,0.2540887]
[1726318703047,0.12549,137.3,137.29,10.2540887]
[1726318703441,0.12549,137.31,137.29,10.2540887]
[1726318717267,7.40829,137.31,137.29,10.2540887]
[1726318717459,7.40829,137.31,137.29,0.2540887]
[1726318719076,7.2833,137.3,137.29,0.2540887]
[1726318719246,7.40879,137.3,137.29,0.2540887]
[1726318722947,0.12549,137.3,137.29,0.2540887]
[1726318736363,7.40879,137.3,137.29,0.2540887]
[1726318738183,15.3863,137.36,137.29,0.2540887]
[1726318738184,3.71772174,137.4,137.37,10.0]
[1726318738385,31.93689486,137.4,137.37,10.0]
[1726318740690,0.12549,137.39,137.37,10.0]
[1726318745778,31.93689486,137.4,137.37,10.0]
[1726318746193,0.2540887,137.44,137.43,10.0]
[1726318746379,0.2540887,137.44,137.43,23.9478]
[1726318750587,0.2540887,137.44,137.43,16.4673]
[1726318753023,0.2540887,137.44,137.43,10.0]
[1726318754497,0.2540887,137.44,137.41,10.0]
[1726318756899,0.2540887,137.44,137.43,10.0]
[1726318759925,0.3795787,137.44,137.41,10.0]
[1726318762295,0.12549,137.43,137.39,10.0]
[1726318768697,16.00049,137.43,137.39,10.0]
[1726318770106,7.2771,137.42,137.39,10.0]
[1726318770409,0.12549,137.41,137.39,10.0]
[1726318770921,0.12549,137.41,137.37,10.0]
[1726318776128,0.12549,137.4,137.37,10.0]
[1726318777230,0.12549,137.39,137.37,10.0]
[1726318782139,0.12549,137.4,137.37,10.0]
[1726318790033,0.12549,137.38,137.29,15.7854887]
[1726318794745,16.73369,137.38,137.29,15.7854887]
[1726318796538,24.01279,137.38,137.29,15.7854887]
[1726318796737,0.12549,137.36,137.29,6.8974887]
[1726318798636,0.12549,137.36,137.29,0.2540887]
[1726318802035,16.6082,137.38,137.3,14.26082621]
[1726318802240,16.6082,137.38,137.31,14.26082621]
[1726318802548,16.6082,137.38,137.31,20.82152621]
[1726318803735,16.6082,137.38,137.31,6.5607]
[1726318803930,0.12549,137.37,137.29,0.2540887]
[1726318804433,7.40519,137.37,137.29,0.2540887]
[1726318804849,7.2802,137.36,137.29,0.2540887]
[1726318805037,0.12549,137.35,137.29,0.2540887]
[1726318805453,7.2816,137.34,137.29,0.2540887]
[1726318805619,6.68599,137.35,137.29,0.2540887]
[1726318806020,13.96669,137.35,137.29,0.2540887]
[1726318807153,0.12549,137.35,137.29,0.2540887]
[1726318807356,20.0,137.37,137.29,0.2540887]
[1726318808751,0.12549,137.36,137.29,0.2540887]
[1726318810439,7.40559,137.36,137.29,0.2540887]
[1726318812958,7.2807,137.35,137.29,0.2540887]
[1726318813123,0.12549,137.34,137.29,0.2540887]
[1726318815527,7.2812,137.34,137.29,0.2540887]
[1726318815742,0.12549,137.32,137.29,0.2540887]
[1726318817548,7.40779,137.32,137.29,0.2540887]
[1726318820349,0.12549,137.32,137.29,0.2540887]
[1726318823536,1.27003186,137.34,137.3,29.53812621]
[1726318823848,16.4262,137.42,137.32,14.26082621]
[1726318824052,7.2775,137.41,137.3,15.2773]
[1726318824255,7.2775,137.41,137.31,14.26082621]
[1726318824846,7.278,137.4,137.31,14.26082621]
[1726318825050,7.278,137.4,137.3,29.53812621]
[1726318825946,0.12549,137.39,137.3,29.53812621]
[1726318826355,7.40419,137.39,137.3,29.53812621]
[1726318826537,7.40419,137.39,137.3,15.2773]
[1726318826852,0.12549,137.39,137.3,29.53812621]
[1726318827057,0.12549,137.39,137.31,14.26082621]
[1726318829155,0.12549,137.39,137.32,0.62927024]
[1726318831159,0.12549,137.39,137.32,0.71281984]
[1726318832561,0.12549,137.39,137.33,0.75244076]
[1726318833455,0.12549,137.39,137.32,0.75244076]
[1726318834042,0.12549,137.39,137.3,29.53812621]
[1726318834656,0.12549,137.39,137.31,0.75490467]
[1726318836477,0.12549,137.39,137.3,29.53812621]
[1726318837473,0.12549,137.39,137.3,15.2773]
[1726318837774,0.12549,137.39,137.3,29.53812621]
[1726318838379,0.12549,137.39,137.31,0.75462977]
[1726318841076,7.40399,137.39,137.31,0.75462977]
[1726318841280,0.12549,137.38,137.3,20.65012621]
[1726318842878,0.12549,137.38,137.31,0.75446624]
[1726318843580,0.12549,137.38,137.29,0.2540887]
[1726318843581,0.12549,137.36,137.29,0.2540887]
[1726318845368,7.40579,137.36,137.29,0.2540887]
[1726318845860,0.12549,137.36,137.29,0.2540887]
[1726318848291,0.12549,137.34,137.29,0.2540887]
[1726318849965,7.40669,137.34,137.29,0.2540887]
[1726318852489,0.12549,137.34,137.29,0.2540887]
[1726318854572,21.9856,137.35,137.29,0.2540887]
[1726318873307,0.12549,137.34,137.29,0.2540887]
[1726318873515,7.40679,137.34,137.29,0.2540887]
[1726318877498,0.12549,137.34,137.29,0.2540887]
[1726318878803,21.9856,137.35,137.29,0.2540887]
[1726318897114,0.12549,137.34,137.29,0.2540887]
[1726318900417,15.1432,137.33,137.29,0.2540887]
[1726318903030,0.12549,137.32,137.29,0.2540887]
[1726318920544,0.12549,137.3,137.29,0.2540887]
[1726318931860,21.5584,137.31,137.29,0.2540887]
[1726318943986,15.5484,137.31,137.29,0.2540887]
[1726318960920,7.61922875,137.34,137.29,0.2540887]
[1726318961112,22.7683,137.35,137.29,0.2540887]
[1726318961325,16.3982,137.35,137.29,0.2540887]
[1726318962405,16.3982,137.35,137.33,7.2817]
[1726318962596,16.3982,137.35,137.32,25.4873]
[1726318962913,0.12549,137.34,137.32,25.4873]
[1726318964592,0.12549,137.34,137.32,18.2051]
[1726318964792,16.3982,137.35,137.29,0.2540887]
[1726318964793,62.90085539,137.38,137.29,14.51491491]
[1726318965019,48.78344692,137.38,137.3,15.22468151]
[1726318965311,48.78344692,137.38,137.31,14.26082621]
[1726318965495,16.3982,137.38,137.31,14.26082621]
[1726318965692,16.3982,137.38,137.32,14.26082621]
[1726318966897,16.3982,137.38,137.31,14.26082621]
[1726318968326,16.3982,137.38,137.36,7.28]
[1726318971325,16.3982,137.38,137.3,14.9855]
[1726318972915,0.12549,137.37,137.3,6.0975]
[1726318973233,0.12549,137.37,137.29,0.2540887]
[1726318977734,7.40529,137.37,137.29,0.2540887]
[1726318978836,0.12549,137.37,137.29,0.2540887]
[1726318990233,0.12549,137.37,137.29,14.51491491]
[1726318991143,0.12549,137.37,137.3,14.26082621]
[1726318991335,23.0005,137.38,137.31,14.26082621]
[1726318992332,23.0005,137.38,137.32,14.26082621]
[1726318994766,0.12549,137.35,137.29,0.2540887]
[1726318996061,15.9651,137.32,137.29,0.2540887]
[1726319008772,0.12549,137.31,137.29,0.2540887]
[1726319009073,15.9651,137.32,137.29,0.2540887]
[1726319015275,15.9651,137.32,137.31,7.2827]
[1726319022683,15.9651,137.32,137.3,7.2831]
[1726319027608,15.9651,137.32,137.31,7.2827]
[1726319028183,6.5421,137.34,137.32,7.2819]
[1726319035026,6.5421,137.34,137.29,0.2540887]
[1726319035215,15.1882,137.35,137.33,7.2817]
[1726319035428,15.1882,137.35,137.34,7.2811]
[1726319036020,15.1882,137.35,137.29,0.2540887]
[1726319036224,15.1882,137.35,137.33,7.2815]
[1726319040360,15.1882,137.35,137.29,0.2540887]
[1726319042242,15.1882,137.35,137.3,7.2828]
[1726319042243,0.12549,137.34,137.3,7.2828]
[1726319042450,6.15309,137.34,137.3,7.2828]
[1726319045225,15.1882,137.35,137.32,7.2822]
[1726319046419,15.1882,137.35,137.31,7.2826]
[1726319046625,0.12549,137.34,137.31,7.2826]
[1726319047951,22.4689,137.35,137.31,7.2826]
[1726319050048,7.40669,137.34,137.3,7.2832]
[1726319051245,7.40669,137.34,137.3,25.4908]
[1726319052360,0.12549,137.34,137.3,25.4908]
[1726319052858,22.4689,137.35,137.3,18.2076]
[1726319060573,15.1882,137.35,137.3,18.2076]
[1726319063469,15.1882,137.35,137.29,0.2540887]
[1726319080291,22.4689,137.35,137.29,0.2540887]
[1726319095637,0.12549,137.34,137.29,0.2540887]
[1726319095814,15.336,137.32,137.29,0.2540887]
[1726319123244,0.12549,137.31,137.29,0.2540887]
[1726319141285,22.6183,137.32,137.29,0.2540887]
[1726319141494,15.336,137.32,137.29,0.2540887]
[1726319146784,0.12549,137.33,137.29,0.2540887]
[1726319166109,7.2818,137.33,137.29,0.2540887]
[1726319166307,7.2823,137.32,137.29,0.2540887]
[1726319168402,7.2828,137.31,137.29,0.2540887]
[1726319169095,7.40789,137.32,137.29,0.2540887]
[1726319169295,0.12549,137.31,137.29,0.2540887]
[1726319172310,7.40829,137.31,137.29,0.2540887]
[1726319199554,7.2833,137.3,137.29,0.2540887]
[1726319199744,7.40879,137.3,137.29,0.2540887]
[1726319208561,0.12549,137.3,137.29,0.2540887]
[1726319208762,7.2829,137.31,137.29,0.2540887]
[1726319227794,7.2833,137.3,137.29,0.2540887]
[1726319228171,7.40879,137.3,137.29,0.2540887]
[1726319244182,0.12549,137.27,137.25,0.2540887]
[1726319246006,7.2839,137.29,137.25,0.2540887]
[1726319246194,7.5575783,137.31,137.25,0.2540887]
[1726319246394,15.1241,137.32,137.25,0.2540887]
[1726319246799,22.4065,137.32,137.25,0.2540887]
[1726319247184,39.98653241,137.33,137.25,0.2540887]
[1726319247498,7.2817,137.33,137.25,0.2540887]